{"text_format":"1","workbook":"xlsx","n_sheets":6,"sheets":["الرئيسية","المعطيات","data","data2","ج حراسة","salim"],"not_rendered":{"charts":0,"images":1,"macros":1,"external_links":2,"defined_names":12,"comments":0,"pivot_tables":0},"unopened":[],"bounds":{"document_bytes":16777216,"sheet_cells":100000,"rows_first":2000,"rows_last":500,"rows_between":2000,"halvings":0,"cell_chars":16384,"cell_head_chars":4096},"cells_cut":0,"cells_raw":0,"read":"whole","date_system":"1900"}

{"sheet":"الرئيسية","index":0,"n_rows":0,"n_cols":0,"rows_kept":0,"cut":false,"hidden":false,"merged":[]}

{"sheet":"المعطيات","index":1,"n_rows":15,"n_cols":19,"rows_kept":15,"cut":false,"hidden":false,"merged":[[12,13,12,17],[13,13,13,17],[0,17,0,22],[13,7,13,10],[14,7,14,10],[2,6,2,8],[5,6,5,8],[4,6,4,8],[0,12,0,15],[10,13,10,15],[1,13,1,15],[3,13,3,15],[5,13,5,15],[8,13,8,15],[2,13,2,15],[4,13,4,15],[14,1,14,4],[7,12,8,12],[9,12,10,12],[12,1,12,4],[13,1,13,4],[12,7,12,10],[9,5,9,7],[9,8,9,9],[7,6,7,8],[9,0,9,3],[8,0,8,1],[8,2,8,4],[8,6,8,8],[3,2,3,4],[0,0,0,9],[1,0,1,9],[3,0,3,1],[2,0,2,3],[5,0,5,1],[5,2,5,4],[7,2,7,4],[4,0,4,1],[4,2,4,4],[6,2,6,3],[6,0,6,1],[7,0,7,1],[6,13,6,15],[7,13,7,15],[9,13,9,15],[1,12,2,12],[3,12,4,12],[5,12,6,12]]}
["الجمهورية الجزائرية الديمقراطية الشعبية",null,null,null,null,null,null,null,null,null,null,null,"أيام الامتحان",null,null,null,"الفترة ","مواد الإمتحان"]
["وزارة التربية الوطنية",null,null,null,null,null,null,null,null,null,null,1,"اليوم الأول","2019-06-16",null,null,"الصباحية ","اللغة العربية"]
["الديوان الوطني للامتحانات والمسابقات",null,null,null,null,"فرع :","وهران ",null,null,null,null,2,null,"2019-06-16",null,null,"المسائية","التربية الإسلامية"]
["مديرية التربية لولاية :",null,"تلمسان",null,null,null,null,null,null,null,null,3,"اليوم الثاني","2019-06-17",null,null,"الصباحية ","الرياضيات"]
["امتحان :",null,"شهادة البكالوريا",null,null,"دورة :","جوان   2019",null,null,null,null,4,null,"2019-06-17",null,null,"المسائية","اللغة الانجليزية"]
["مركز الإجراء :",null,"ثانوية بوزيدي محمد ",null,null,"بـ :","صبرة ",null,null,null,null,5,"اليوم الثالث","2019-06-18",null,null,"الصباحية ","علوم الطبيعة و الحياة ","تكنولوجيا "]
["رمز المركز :",null,7182,null,null,null,null,null,null,null,null,6,null,"2019-06-18",null,null,"المسائية","اللغة الفرنسية"]
["رئيس المركز :",null,null,null,null,"الإطار :","مدير ثانوية ",null,null,null,null,7,"اليوم الرابع","2019-06-19",null,null,"الصباحية ","التاريخ والجغرافيا"]
["نائب رئيس المركز :",null,null,null,null,"الإطار :","ناظر ",null,null,null,null,8,null,"2019-06-19",null,null,"المسائية"]
["عدد الساعات الممنوحة للحراس",null,null,null,null,"عدد أيام الامتحان",null,null,5,null,null,9,"اليوم الخامس","2019-06-20",null,null,"الصباحية ","الفيزياء والكيمياء"]
[null,null,null,null,null,null,null,null,null,null,null,10,null,"2019-06-20",null,null,"المسائية","الفلسفة"]
[]
[null,"عدد الأساتـــذة الحراس :",null,null,null,65,null,"عدد فترات الحراسة :",null,null,null,9,null,"عدد الحراس في كل فترات الامتحان  : ",null,null,null,null,{"$f":"L15*L13","v":306}]
[null,"عدد الحراس في القاعة :",null,null,null,3,null,"عدد الحراس في الاحتياط :",null,null,null,7,null,"عدد فترات الحراسة لكل حارس :",null,null,null,null,{"$f":"S13/F13","v":4.7076923076923078}]
[null,"عدد القــــــــــــاعات",null,null,null,9,null,"عدد الحراس في كل فترة : ",null,null,null,{"$f":"(F15*F14)+L14","v":34}]

{"sheet":"data","index":2,"n_rows":211,"n_cols":10,"rows_kept":211,"cut":false,"hidden":false,"merged":[[6,1,8,12],[10,6,10,7]]}
[]
[]
[]
[]
[]
[]
[null,"معلــــــــومات الحـــــــــــــــــــراس"]
[]
[]
[]
["الرقم","اللقب والاسم","الاطار","المادة","مؤسسة العمل","الجنس","المواد",null,"المؤسسات","الجنس"]
[1,"دفافني  إيمان ","أ ت ث","الرياضيات","ثا.بوعزة ميلود مغنية ","F","اللغة الانجليزية","ANG","ثا.بوعزة ميلود مغنية ","H"]
[2,"الوازن توفيق ","أ ت ث","الفيزياء والكيمياء","ثا.بوعزة ميلود مغنية ","H","اللغة العربية","AR","ثانوية مفدي وكرياء-مغنية ","F"]
[3,"بناصر  حنان","أ ت ث","الفيزياء والكيمياء","ثا.بوعزة ميلود مغنية ","F","التربية الإسلامية","EI","ثانوية  الخوارزمي - مغنية "]
[4,"بن فريد   مليكة","أ ت ث","علوم الطبيعة و الحياة ","ثا.بوعزة ميلود مغنية ","F","التربية البدنية","EP","متوسطة الشهيد بونغلة عبد القادر-صبرة  "]
[5,"حوض  فاطمة","أ ت ث","الفيزياء والكيمياء","ثا.بوعزة ميلود مغنية ","F","اللغة الفرنسية","FR","متوسطة غالم محمد صبرة"]
[6,"محمدي   حورية","أ ت ث","اللغة العربية","ثا.بوعزة ميلود مغنية ","F","التاريخ والجغرافيا","HG","متوسطة بن مصطفى أحمد صبرة","الصنف"]
[7,"بوزار  عبد الباسط","أ ت ث","الفيزياء والكيمياء","ثا.بوعزة ميلود مغنية ","H","الرياضيات","MAT",null,"أ ت ث"]
[8,"قادري  حسن","أ ت ث","اللغة العربية","ثا.بوعزة ميلود مغنية ","H","الفيزياء والكيمياء","PYC",null,"أ ت م"]
[9,"أوبشير  إيمان","أ ت ث","اللغة العربية","ثا.بوعزة ميلود مغنية ","F","معلوماتية ","INF",null,"أ ت إ"]
[10,"بوعرفاوي   أمين","أ ت ث","اللغة العربية","ثا.بوعزة ميلود مغنية ","H","الفلسفة","PHIL"]
[11,"موس   محمد","أ ت ث","التاريخ والجغرافيا","ثا.بوعزة ميلود مغنية ","H","علوم الطبيعة و الحياة ","SVT"]
[12,"جدير زكية","أ ت ث","التاريخ والجغرافيا","إبتداية الخوارزمي - مغنية ","F","تكنولوجيا ","TEH"]
[13,"بن هدية    عبد الجبار","أ ت ث","تكنولوجيا ","إبتداية الخوارزمي - مغنية ","H","إسبانية ","ESP"]
[14,"بن مير أحمد","أ ت ث","التربية الإسلامية","إبتداية الخوارزمي - مغنية ","H","تربية تشكيلية ","DES"]
[15,"رحيل محمد","أ ت ث","التربية الإسلامية","إبتداية الخوارزمي - مغنية ","H","إعلام آلي","INF"]
[16,"بوسحابة   رضية","أ ت ث","اللغة الفرنسية","إبتداية الخوارزمي - مغنية ","F"]
[17,"نمر    عبد الكريم","أ ت ث","علوم الطبيعة و الحياة ","إبتداية الخوارزمي - مغنية ","H"]
[18,"شيعلي وسيلة","أ ت ث","تكنولوجيا ","إبتداية الخوارزمي - مغنية ","F"]
[19,"بن صابر  ليندة","أ ت ث","اللغة الانجليزية","إبتداية الخوارزمي - مغنية ","F"]
[20,"بن ثابت محمد","أ ت ث","التربية البدنية","إبتداية الخوارزمي - مغنية ","H"]
[21,"زاوي وفاء","أ ت ث","اللغة العربية","إبتداية الخوارزمي - مغنية ","F"]
[22,"بن أحمد هجيرة","أ ت ث","علوم الطبيعة و الحياة ","إبتداية الخوارزمي - مغنية ","F"]
[23,"بن أحمد عبد المومن","أ ت ث","الفيزياء والكيمياء","إبتداية الخوارزمي - مغنية ","H"]
[24,"العياطي  عبد الفتاح","أ ت ث","الفلسفة ","إبتداية الخوارزمي - مغنية ","H"]
[25,"ستيلي نعيمة","أ ت ث","علوم الطبيعة و الحياة ","إبتداية الخوارزمي - مغنية ","F"]
[26,"بن بختي نورية","أ ت ث","الفيزياء والكيمياء","متوسطة ابو هريرة ","F"]
[27,"فقيه  عبد الخالق","أ ت ث","اللغة الانجليزية","متوسطة ابو هريرة ","H"]
[28,"ديب   عبد الحفيظ","أ ت ث","علوم الطبيعة و الحياة ","متوسطة ابو هريرة ","H"]
[29,"بوغزال عبد العزيز","أ ت ث","اللغة العربية","متوسطة ابو هريرة ","H"]
[30,"ترابي نزيهة","أ ت ث","علوم الطبيعة و الحياة ","متوسطة ابو هريرة ","F"]
[31,"هداني خديجة","أ ت ث","اللغة الفرنسية","متوسطة ابو هريرة ","F"]
[32,"بدي  إسمهان","أ ت ث","اللغة العربية","متوسطة ابو هريرة ","F"]
[33,"حطاب إيمان","أ ت ث","اللغة العربية","متوسطة ابو هريرة ","F"]
[34,"بريرج فتحي","أ ت ث","التاريخ والجغرافيا","متوسطة ابو هريرة ","H"]
[35,"بن عيسى مريم","أ ت ث","علوم الطبيعة و الحياة ","متوسطة ابو هريرة ","F"]
[36,"كحلون  حنان","أ ت ث","اللغة الانجليزية","متوسطة ابو هريرة ","F"]
[37,"مرابط فاطمة الزهراء","أ ت ث","اللغة الفرنسية","متوسطة ابو هريرة ","F"]
[38,"سعيد حسين","أ ت ث","الفيزياء والكيمياء","متوسطة العابدي - صبرة ","H"]
[39,"يعقوبي خالد","أ ت ث","الرياضيات","متوسطة العابدي - صبرة ","H"]
[40,"قدودو إلياس","أ ت ث","الرياضيات","متوسطة العابدي - صبرة ","H"]
[41,"لحسين  محمد","أ ت ث","علوم الطبيعة و الحياة ","متوسطة العابدي - صبرة ","H"]
[42,"عبوين كمال","أ ت ث","علوم الطبيعة و الحياة ","متوسطة العابدي - صبرة ","H"]
[43,"سراجي نسرين","أ ت ث","اللغة الفرنسية","متوسطة العابدي - صبرة ","F"]
[44,"حاج عبد القادر نورة","أ ت ث","إسبانية","متوسطة العابدي - صبرة ","F"]
[45,"قنون محمد","أ ت ث","التربية الإسلامية","متوسطة العابدي - صبرة ","H"]
[46,"بوهنية عبد الحكيم","أ ت ث","التربية الإسلامية","متوسطة العابدي - صبرة ","H"]
[47,"تاجوري كريم","أ ت ث","اللغة الانجليزية","متوسطة العابدي - صبرة ","H"]
[48,"سليمان محمد","أ ت ث","التربية بدنية ","متوسطة العابدي - صبرة ","H"]
[49,"خاطر سهام","أ ت ث","الرياضيات","متوسطة العابدي - صبرة ","F"]
[50,"عدو  أمال","أ ت ث","الفيزياء والكيمياء","متوسطة العابدي - صبرة ","F"]
[51,"حبار نعيمة","أ ت ث","علوم الطبيعة و الحياة ","متوسطة العابدي - صبرة ","F"]
[52,"بويدوح فطيمة الزهراء","أ ت ث","علوم الطبيعة و الحياة ","متوسطة العابدي - صبرة ","F"]
[53,"زروال جميلة","أ ت ث","اللغة العربية","إبتداية الخوارزمي - مغنية ","F"]
[54,"دار يزيد حنان","أ ت ث","الفلسفة ","إبتداية الخوارزمي - مغنية ","F"]
[55,"ديني محمد","أ ت ث","اللغة الانجليزية","إبتداية الخوارزمي - مغنية ","H"]
[56,"موس   أمال","أ ت ث","اللغة الفرنسية","إبتداية الخوارزمي - مغنية ","F"]
[57,"بلتشين عبد النبي","أ ت ث","تكنولوجيا ","ثا.المقـــري ","H"]
[58,"أوسالم فوزي","أ ت ث","التربية بدنية ","ثا.المقـــري ","F"]
[59,"بيوض لوط","أ ت م","الرياضيات","ثا.المقـــري ","H"]
[60,"زيان  زوليخة","أ ت م","الرياضيات","ثا.المقـــري ","F"]
[61,"طالبي عبد القادر","أ ت م","الرياضيات","ثا.المقـــري ","H"]
[62,"خضراوي محمد زين عابدين","أ ت م","تكنولوجيا ","ثا.المقـــري ","H"]
[63,"بن طيب زكرياء","أ ت م","علوم الطبيعة و الحياة ","ثا.المقـــري ","H"]
[64,"ربيعي (بن شكور) أمال","أ ت م","اللغة العربية","ثا.المقـــري ","F"]
[65,"بلحاج خيرة","أ ت م","تكنولوجيا ","ثا.المقـــري ","F"]
[66,"نوالي وردة","أ ت م","اللغة الفرنسية","ثا.المقـــري ","F"]
[67,"قرشي سهام","أ ت م","اللغة الفرنسية","ثا.المقـــري ","F"]
[68,"إزناسني بشرى","أ ت م","اللغة الفرنسية","ثا.المقـــري ","F"]
[69,"شملال عبد القادر","أ ت م","الرياضيات","ثا.المقـــري ","H"]
[70,"مصطفاوي محمد أمين","أ ت م","تكنولوجيا ","ثا.المقـــري ","H"]
[71,"أوشريف  اعمر","أ ت م","علوم الطبيعة و الحياة ","ثا.المقـــري ","H"]
[72,"بوهني محمد","أ ت م","اللغة العربية","ثا.المقـــري ","H"]
[73,"غاز سفيان","أ ت م","اللغة الانجليزية","ثا.المقـــري ","H"]
[74,"شريفي إبراهيم","أ ت م","التربية بدنية ","ثا.المقـــري ","H"]
[75,"بن عبد الواحد محمد شرف","أ ت م","التربية بدنية ","ثا.المقـــري ","H"]
[76,"أورابح هشام","أ ت م","علوم الطبيعة و الحياة ","ثا.المقـــري ","H"]
[77,"لعريس محمد","أ ت م","التاريخ والجغرافيا","ثا.المقـــري ","H"]
[78,"عومر سنوسي","أ ت م","تربية تشكيلية","ثا.المقـــري ","H"]
[79,"خاطر مصطفى","أ ت م","الرياضيات","ثا.المقـــري ","H"]
[80,"كاري (حوات)  فوزية","أ ت م","اللغة الانجليزية","ثا.المقـــري ","F"]
[81,"بن علي محمد","أ ت م","التربية البدنية","إبتداية الخوارزمي - مغنية ","H"]
[82,"مالكي  أمال","أ ت م","الرياضيات","إبتداية الخوارزمي - مغنية ","F"]
[83,"بلهاشم رضية","أ ت م","اللغة الفرنسية","إبتداية الخوارزمي - مغنية ","F"]
[84,"أوسهلة محمد","أ ت م","علوم الطبيعة و الحياة ","إبتداية الخوارزمي - مغنية ","H"]
[85,"بن شكور محمد","أ ت م","التاريخ والجغرافيا","متوسطة ابو هريرة ","H"]
[86,"بلهادي رشيدة","أ ت م","اللغة العربية","متوسطة ابو هريرة ","F"]
[87,"لخضاري حياة","أ ت م","اللغة الفرنسية","متوسطة غالم محمد صبرة","F"]
[88,"جيج محمد الأمين","أ ت م","التربية البدنية","متوسطة ابو هريرة ","H"]
[89,"حجوج قويدر","أ ت م","اللغة العربية","إبتداية الخوارزمي - مغنية ","H"]
[90,"هاشمي ربيحة","أ ت م","اللغة العربية","إبتداية الخوارزمي - مغنية ","F"]
[91,"شارف نادية","أ ت م","اللغة العربية","إبتداية الخوارزمي - مغنية ","F"]
[92,"عزي خديجة","أ ت م","اللغة الانجليزية","إبتداية الخوارزمي - مغنية ","F"]
[93,"نابوت محمد","أ ت م","الرياضيات","متوسطة ابو هريرة ","H"]
[94,"طول ياسين","أ ت م","التاريخ والجغرافيا","متوسطة ابو هريرة ","H"]
[95,"سعيداني عز الدين","أ ت م","التربية البدنية","متوسطة ابو هريرة ","H"]
[96,"هواري أمينة","أ ت م","علوم الطبيعة و الحياة ","متوسطة ابو هريرة ","F"]
[97,"غالمي ليلى","أ ت م","الفيزياء والكيمياء","إبتداية الخوارزمي - مغنية ","F"]
[98,"سميلي أمال","أ ت م","اللغة الفرنسية","إبتداية الخوارزمي - مغنية ","F"]
[99,"لحسايني سفيان","أ ت م","اللغة العربية","إبتداية الخوارزمي - مغنية ","H"]
[100,"بن ميلود سفيان","أ ت م","علوم الطبيعة و الحياة ","إبتداية الخوارزمي - مغنية ","H"]
[101,"عناب شعيب","أ ت م","الرياضيات","متوسطة ابو هريرة ","H"]
[102,"عقاب أحمد","أ ت م","التربية البدنية","متوسطة ابو هريرة ","H"]
[103,"حدوين محمد","أ ت م","تكنولوجيا ","متوسطة ابو هريرة ","H"]
[104,"تومي حمزة","أ ت م","الرياضيات","متوسطة ابو هريرة ","H"]
[105,"غرفاتي عبد الرحمان","أ ت م","الرياضيات","إبتداية الخوارزمي - مغنية ","H"]
[106,"صالح عبد الرحمان","أ ت م","تكنولوجيا ","إبتداية الخوارزمي - مغنية ","H"]
[107,"ميري  فاطمة","أ ت م","اللغة الفرنسية","متوسطة العابدي - صبرة ","F"]
[108,"حدوين وفاء","أ ت م","اللغة العربية","ثا.المقـــري ","F"]
[109,"موسى (علاهم)خديجة","أ ت م","اللغة العربية","ثا.المقـــري ","F"]
[110,"يحياوي يوسفي زينب","أ ت م","تكنولوجيا ","ثا.المقـــري ","F"]
[111,"بلحسين  محمد","أ ت م","التربية البدنية","ثا.المقـــري ","H"]
[112,"بوسكاية  فاطمة","أ ت م","التاريخ والجغرافيا","ثا.المقـــري ","F"]
[113,"رفوفي سليمة","أ ت م","اللغة العربية","ثا.المقـــري ","F"]
[114,"بهلولي سفيان","أ ت م","اللغة العربية",null,"H"]
[115,"طاري حياة","أ ت م","التاريخ والجغرافيا",null,"F"]
[116,"شعبان  سامية","أ ت م","علوم الطبيعة و الحياة ",null,"F"]
[117,"شداد  محمد ","أ ت م","الرياضيات",null,"H"]
[118,"بلعسكري عبد القادر","أ ت م","اللغة الفرنسية",null,"H"]
[119]
[120]
[121]
[122]
[123]
[124]
[125]
[126]
[127]
[128]
[129]
[130]
[131]
[132]
[133]
[134,null,null,null,null,null,{"$f":"COUNTIF(F12:F137,\"h\")","v":62}]
[135]
[136]
[137]
[138]
[139]
[140]
[141]
[142]
[143]
[144]
[145]
[146]
[147]
[148]
[149]
[150]
[151]
[152]
[153]
[154]
[155]
[156]
[157]
[158]
[159]
[160]
[161]
[162]
[163]
[164]
[165]
[166]
[167]
[168]
[169]
[170]
[171]
[172]
[173]
[174]
[175]
[176]
[177]
[178]
[179]
[180]
[181]
[182]
[183]
[184]
[185]
[186]
[187]
[188]
[189]
[190]
[191]
[192]
[193]
[194]
[195]
[196]
[197]
[198]
[199]
[200]

{"sheet":"data2","index":3,"n_rows":136,"n_cols":43,"rows_kept":136,"cut":false,"hidden":false,"merged":[[3,8,3,9],[2,8,2,9],[2,10,2,11],[2,12,2,13],[2,14,2,15],[2,16,2,17],[3,10,3,11],[3,12,3,13],[3,14,3,15],[3,16,3,17]]}
[null,null,null,null,null,null,null,"الاحتياط",{"$f":"COUNTIF(I6:I134,\"ح\")","v":0},{"$f":"COUNTIF(J6:J134,\"ح\")","v":0},0,0,0,0,0,0,0,0]
[null,null,null,null,null,null,null,"الحراس",{"$f":"I136-I1","v":36},27,0,0,0,0,0,0,0,0,null,null,null,null,null,null,null,null,null,null,null,null,null,null,null,null,null,null,null,null,null,null,5]
[null,null,null,null,null,null,null,"التاريخ",{"$f":"المعطيات!N2","v":"2019-06-16"},null,{"$f":"المعطيات!N4","v":"2019-06-17"},null,{"$f":"المعطيات!N6","v":"2019-06-18"},null,{"$f":"المعطيات!N9","v":"2019-06-19"},null,{"$f":"المعطيات!N11","v":"2019-06-20"}]
[null,null,null,null,null,null,null,"اليوم ","اليوم الأول",null,"اليوم الثاني ",null,"اليوم الثالث",null,"اليوم الرابع",null,"اليوم الخامس",null,null,null,null,null,null,null,null,null,null,null,null,null,null,null,null,null,null,null,null,null,null,null,null,null,"اليوم :"]
[null,null,null,null,null,null,null,"الفترة","ص","م","ص","م","ص","م","ص","م","ص","م",null,null,null,null,null,null,null,null,null,null,null,null,null,null,null,null,null,null,null,null,null,null,null,null,"الفترة :"]
["الرقم","اسم و لقب الحارس","المادة","المؤسسة ",null,"القاعات","الرمز","المـــــــواد","ل العربية","ع إسلامية","رياضيات","انجليزية","ع ط ح+تك","فرنسية","تج",null,"فيزياء","فلسفة",1,2,3,4,5,6,7,8,9,10,"م.الاحتياط",1,2,3,4,5,6,7,8,9,10,"المجموع",null,"م.الأيام"]
[2,"الوازن توفيق ","الفيزياء والكيمياء","ثا.بوعزة ميلود مغنية ",null,1,"A",null,1,"ر1",null,null,null,null,null,null,null,null,{"$f":"COUNTIF(I7,\"ح\")","v":0},{"$f":"COUNTIF(J7,\"ح\")","v":0},{"$f":"COUNTIF(K7,\"ح\")","v":0},0,0,0,0,0,0,0,{"$f":"AB7+AA7+Z7+Y7+X7+W7+U7+T7+S7+V7","v":0},{"$f":"COUNTA(I7:I7)","v":1},1,0,{"$f":"COUNTA(L7:L7)","v":0},0,0,0,{"$f":"COUNTA(Q7:Q7)","v":0},{"$f":"COUNTA(Q7:Q7)","v":0},{"$f":"COUNTA(R7:R7)","v":0},{"$f":"AM7+AL7+AK7+AJ7+AI7+AH7+AG7+AF7+AE7+AD7","v":2},{"$f":"AC7","v":0},{"$f":"(AN7-AO7)/2","v":1},{"$f":"SUM(AD7:AN7)","v":4}]
[7,"بوزار عبد الباسط","الفيزياء والكيمياء","ثا.بوعزة ميلود مغنية ",null,2,"A",null,5,"ر2",null,null,null,null,null,null,null,null,0,0,0,0,0,0,0,0,0,0,{"$f":"AB8+AA8+Z8+Y8+X8+W8+U8+T8+S8+V8","v":0},1,1,0,0,0,0,0,{"$f":"COUNTA(Q8:Q8)","v":0},0,{"$f":"COUNTA(R8:R8)","v":0},{"$f":"AM8+AL8+AK8+AJ8+AI8+AH8+AG8+AF8+AE8+AD8","v":2},{"$f":"AC8","v":0},{"$f":"(AN8-AO8)/2","v":1},{"$f":"SUM(AD8:AN8)","v":4}]
[8,"قادري حسن","اللغة العربية","ثا.بوعزة ميلود مغنية ",null,3,"B",null,null,"ر3",null,null,null,null,null,null,null,null,0,0,0,0,0,0,0,0,0,0,0,0,1,0,0,0,0,0,0,0,0,1,0,0.5,2]
[10,"بوعرفاوي أمين","اللغة العربية","ثا.بوعزة ميلود مغنية ",null,4,"C",null,null,"ر4",null,null,null,null,null,null,null,null,0,0,0,0,0,0,0,0,0,0,0,0,1,0,0,0,0,0,0,0,0,1,0,0.5,2]
[11,"موس محمد","التاريخ والجغرافيا","ثا.بوعزة ميلود مغنية ",null,5,"D",null,7,"ر5",null,null,null,null,null,null,null,null,0,0,0,0,0,0,0,0,0,0,0,1,1,0,0,0,0,0,0,0,0,2,0,1,4]
[13,"بن هدية عبد الجبار","تكنولوجيا ","إبتداية الخوارزمي - مغنية ",null,6,"A",null,19,"ر6",null,null,null,null,null,null,null,null,0,0,0,0,0,0,0,0,0,0,0,1,1,0,0,0,0,0,0,0,0,2,0,1,4]
[14,"بن مير أحمد","التربية الإسلامية","إبتداية الخوارزمي - مغنية ",null,7,"A",null,"ر5",null,null,null,null,null,null,null,null,null,0,0,0,0,0,0,0,0,0,0,0,1,0,0,0,0,0,0,0,0,0,1,0,0.5,2]
[15,"رحيل محمد","التربية الإسلامية","إبتداية الخوارزمي - مغنية ",null,8,"C",null,"ر7",null,null,null,null,null,null,null,null,null,0,0,0,0,0,0,0,0,0,0,0,1,0,0,0,0,0,0,0,0,0,1,0,0.5,2]
[17,"نمر عبد الكريم","علوم الطبيعة و الحياة ","إبتداية الخوارزمي - مغنية ",null,9,"C",null,"ح1","ر7",null,null,null,null,null,null,null,null,0,0,0,0,0,0,0,0,0,0,0,1,1,0,0,0,0,0,0,0,0,2,0,1,4]
[20,"بن ثابت محمد","التربية البدنية","إبتداية الخوارزمي - مغنية ",null,10,"C",null,"ح2","ر8",null,null,null,null,null,null,null,null,0,0,0,0,0,0,0,0,0,0,0,1,1,0,0,0,0,0,0,0,0,2,0,1,4]
[23,"بن أحمد عبد المومن","الفيزياء والكيمياء","إبتداية الخوارزمي - مغنية ",null,11,"C",null,"ح3","ر9",null,null,null,null,null,null,null,null,0,0,0,0,0,0,0,0,0,0,0,1,1,0,0,0,0,0,0,0,0,2,0,1,4]
[24,"العياطي عبد الفتاح","الفلسفة ","إبتداية الخوارزمي - مغنية ",null,12,"D",null,"ر1",1,null,null,null,null,null,null,null,null,0,0,0,0,0,0,0,0,0,0,0,1,1,0,0,0,0,0,0,0,0,2,0,1,4]
[27,"فقيه عبد الخالق","اللغة الانجليزية","متوسطة ابو هريرة ",null,13,null,null,"ر2",2,null,null,null,null,null,null,null,null,0,0,0,0,0,0,0,0,0,0,0,1,1,0,0,0,0,0,0,0,0,2,0,1,4]
[28,"ديب عبد الحفيظ","علوم الطبيعة و الحياة ","متوسطة ابو هريرة ",null,14,null,null,"ر3",3,null,null,null,null,null,null,null,null,0,0,0,0,0,0,0,0,0,0,0,1,1,0,0,0,0,0,0,0,0,2,0,1,4]
[29,"بوغزال عبد العزيز","اللغة العربية","متوسطة ابو هريرة ",null,15,null,null,null,4,null,null,null,null,null,null,null,null,0,0,0,0,0,0,0,0,0,0,0,0,1,0,0,0,0,0,0,0,0,1,0,0.5,2]
[34,"بريرج فتحي","التاريخ والجغرافيا","متوسطة ابو هريرة ",null,16,null,null,"ر4",5,null,null,null,null,null,null,null,null,0,0,0,0,0,0,0,0,0,0,0,1,1,0,0,0,0,0,0,0,0,2,0,1,4]
[38,"سعيد حسين","الفيزياء والكيمياء","متوسطة العابدي - صبرة ",null,17,null,null,"ر6",6,null,null,null,null,null,null,null,null,0,0,0,0,0,0,0,0,0,0,0,{"$f":"COUNTA(I23:I23)","v":1},1,0,0,0,0,0,0,0,0,2,0,1,4]
[39,"يعقوبي خالد","الرياضيات","متوسطة العابدي - صبرة ",null,18,null,null,"ر9",7,null,null,null,null,null,null,null,null,0,0,0,0,0,0,0,0,0,0,0,1,1,0,0,0,0,0,0,0,0,2,0,1,4]
[40,"قدودو إلياس","الرياضيات","متوسطة العابدي - صبرة ",null,19,null,null,"ر8",8,null,null,null,null,null,null,null,null,0,0,0,0,0,0,0,0,0,0,0,1,1,0,0,0,0,0,0,0,0,2,0,1,4]
[41,"لحسين محمد","علوم الطبيعة و الحياة ","متوسطة العابدي - صبرة ",null,20,null,null,1,9,null,null,null,null,null,null,null,null,0,0,0,0,0,0,0,0,0,0,0,1,1,0,0,0,0,0,0,0,0,2,0,1,4]
[42,"عبوين كمال","علوم الطبيعة و الحياة ","متوسطة العابدي - صبرة ",null,21,null,null,1,1,null,null,null,null,null,null,null,null,0,0,0,0,0,0,0,0,0,0,0,1,1,0,0,0,0,0,0,0,0,2,0,1,4]
[45,"قنون محمد","التربية الإسلامية","متوسطة العابدي - صبرة ",null,22,null,null,2,null,null,null,null,null,null,null,null,null,0,0,0,0,0,0,0,0,0,0,0,1,0,0,0,0,0,0,0,0,0,1,0,0.5,2]
[46,"بوهنية عبد الحكيم","التربية الإسلامية","متوسطة العابدي - صبرة ",null,23,null,null,2,null,null,null,null,null,null,null,null,null,0,0,0,0,0,0,0,0,0,0,0,1,0,0,0,0,0,0,0,0,0,1,0,0.5,2]
[47,"تاجوري كريم","اللغة الانجليزية","متوسطة العابدي - صبرة ",null,24,null,null,3,2,null,null,null,null,null,null,null,null,0,0,0,0,0,0,0,0,0,0,0,1,1,0,0,0,0,0,0,0,0,2,0,1,4]
[48,"سليمان محمد","التربية بدنية ","متوسطة العابدي - صبرة ",null,25,null,null,3,3,null,null,null,null,null,null,null,null,0,0,0,0,0,0,0,0,0,0,0,1,1,0,0,0,0,0,0,0,0,2,0,1,4]
[55,"ديني محمد","اللغة الانجليزية","إبتداية الخوارزمي - مغنية ",null,26,null,null,4,4,null,null,null,null,null,null,null,null,0,0,0,0,0,0,0,0,0,0,0,1,1,0,0,0,0,0,0,0,0,2,0,1,4]
[57,"بلتشين عبد النبي","تكنولوجيا ","ثا.المقـــري ",null,27,null,null,4,5,null,null,null,null,null,null,null,null,0,0,0,0,0,0,0,0,0,0,0,1,1,0,0,0,0,0,0,0,0,2,0,1,4]
[59,"بيوض لوط","الرياضيات","ثا.المقـــري ",null,28,null,null,5,6,null,null,null,null,null,null,null,null,0,0,0,0,0,0,0,0,0,0,0,1,1,0,0,0,0,0,0,0,0,2,0,1,4]
[61,"طالبي عبد القادر","الرياضيات","ثا.المقـــري ",null,29,null,null,5,7,null,null,null,null,null,null,null,null,0,0,0,0,0,0,0,0,0,0,0,1,1,0,0,0,0,0,0,0,0,2,0,1,4]
[62,"خضراوي محمد زين عابدين","تكنولوجيا ","ثا.المقـــري ",null,30,null,null,6,8,null,null,null,null,null,null,null,null,0,0,0,0,0,0,0,0,0,0,0,1,1,0,0,0,0,0,0,0,0,2,0,1,4]
[63,"بن طيب زكرياء","علوم الطبيعة و الحياة ","ثا.المقـــري ",null,31,null,null,6,9,null,null,null,null,null,null,null,null,0,0,0,0,0,0,0,0,0,0,0,1,1,0,0,0,0,0,0,0,0,2,0,1,4]
[69,"شملال عبد القادر","الرياضيات","ثا.المقـــري ",null,32,null,null,7,null,null,null,null,null,null,null,null,null,0,0,0,0,0,0,0,0,0,{"$f":"COUNTIF(R38,\"ح\")","v":0},0,1,0,0,0,0,0,0,0,0,0,1,0,0.5,2]
[70,"مصطفاوي محمد أمين","تكنولوجيا ","ثا.المقـــري ",null,33,null,null,8,null,null,null,null,null,null,null,null,null,{"$f":"COUNTIF(I39,\"ح\")","v":0},0,0,0,0,0,0,0,0,0,0,1,0,0,0,0,0,0,0,0,0,1,0,0.5,2]
[71,"أوشريف اعمر","علوم الطبيعة و الحياة ","ثا.المقـــري ",null,34,null,null,8,null,null,null,null,null,null,null,null,null,0,0,0,0,0,0,0,0,0,0,0,1,0,0,0,0,0,0,0,0,0,1,0,0.5,2]
[72,"بوهني محمد","اللغة العربية","ثا.المقـــري ",null,35,null,null,null,null,null,null,null,null,null,null,null,null,0,0,0,0,0,0,0,0,0,0,0,0,0,0,0,0,0,0,0,0,0,0,0,0,0]
[73,"غاز سفيان","اللغة الانجليزية","ثا.المقـــري ",null,36,null,null,"ح2",null,null,null,null,null,null,null,null,null,0,0,0,0,0,0,0,0,0,0,0,1,0,0,0,0,0,0,0,0,0,1,0,0.5,2]
[74,"شريفي إبراهيم","التربية بدنية ","ثا.المقـــري ",null,37,null,null,"ح2",null,null,null,null,null,null,null,null,null,0,0,0,0,0,0,0,0,0,0,0,1,0,0,0,0,0,0,0,0,0,1,0,0.5,2]
[75,"بن عبد الواحد محمد شرف","التربية بدنية ","ثا.المقـــري ",null,38,null,null,"ح1",null,null,null,null,null,null,null,null,null,0,0,0,0,0,0,0,0,0,0,0,1,0,0,0,0,0,0,0,0,0,1,0,0.5,2]
[76,"أورابح هشام","علوم الطبيعة و الحياة ","ثا.المقـــري ",null,39,null,null,9,null,null,null,null,null,null,null,null,null,0,0,0,0,0,0,0,0,0,0,0,1,0,0,0,0,0,0,0,0,0,1,0,0.5,2]
[77,"لعريس محمد","التاريخ والجغرافيا","ثا.المقـــري ",null,40,null,null,9,null,null,null,null,null,null,null,null,null,0,0,0,0,0,0,0,0,0,0,0,1,0,0,0,0,0,0,0,0,0,1,0,0.5,2]
[78,"عومر سنوسي","تربية تشكيلية","ثا.المقـــري ",null,null,null,null,null,null,null,null,null,null,null,null,null,null,0,0,0,0,0,0,0,0,0,0,0,0,0,0,0,0,0,0,0,0,0,0,0,0,0]
[79,"خاطر مصطفى","الرياضيات","ثا.المقـــري ",null,null,null,null,null,null,null,null,null,null,null,null,null,null,0,0,0,0,0,0,0,0,0,0,0,0,0,0,0,0,0,0,0,0,0,0,0,0,0]
[81,"بن علي محمد","التربية البدنية","إبتداية الخوارزمي - مغنية ",null,null,null,null,null,null,null,null,null,null,null,null,null,null,0,0,0,0,0,0,0,0,0,0,0,0,0,0,0,0,0,0,0,0,0,0,0,0,0]
[84,"أوسهلة محمد","علوم الطبيعة و الحياة ","إبتداية الخوارزمي - مغنية ",null,null,null,null,null,null,null,null,null,null,null,null,null,null,0,0,0,0,0,0,0,0,0,0,0,0,0,0,0,0,0,0,0,0,0,0,0,0,0]
[85,"بن شكور محمد","التاريخ والجغرافيا","متوسطة ابو هريرة ",null,null,null,null,null,null,null,null,null,null,null,null,null,null,0,0,0,0,0,0,0,0,0,0,0,0,0,0,0,0,0,0,0,0,0,0,0,0,0]
[88,"جيج محمد الأمين","التربية البدنية","متوسطة ابو هريرة ",null,null,null,null,null,null,null,null,null,null,null,null,null,null,0,0,0,0,0,0,0,0,0,0,0,0,0,0,0,0,0,0,0,0,0,0,0,0,0]
[89,"حجوج قويدر","اللغة العربية","إبتداية الخوارزمي - مغنية ",null,null,null,null,null,null,null,null,null,null,null,null,null,null,0,0,0,0,0,0,0,0,0,0,0,0,0,0,0,0,0,0,0,0,0,0,0,0,0]
[93,"نابوت محمد","الرياضيات","متوسطة ابو هريرة ",null,null,null,null,null,null,null,null,null,null,null,null,null,null,0,0,0,0,0,0,0,0,0,0,0,0,0,0,0,0,0,0,0,0,0,0,0,0,0]
[94,"طول ياسين","التاريخ والجغرافيا","متوسطة ابو هريرة ",null,null,null,null,null,null,null,null,null,null,null,null,null,null,0,0,0,0,0,0,0,0,0,0,0,0,0,0,0,0,0,0,0,0,0,0,0,0,0]
[95,"سعيداني عز الدين","التربية البدنية","متوسطة ابو هريرة ",null,null,null,null,null,null,null,null,null,null,null,null,null,null,0,0,0,0,0,0,0,0,0,0,0,0,0,0,0,0,0,0,0,0,0,0,0,0,0]
[99,"لحسايني سفيان","اللغة العربية","إبتداية الخوارزمي - مغنية ",null,null,null,null,null,null,null,null,null,null,null,null,null,null,0,0,0,0,0,0,0,0,0,0,0,0,0,0,0,0,0,0,0,0,0,0,0,0,0]
[100,"بن ميلود سفيان","علوم الطبيعة و الحياة ","إبتداية الخوارزمي - مغنية ",null,null,null,null,null,null,null,null,null,null,null,null,null,null,0,0,0,0,0,0,0,0,0,0,0,0,0,0,0,0,0,0,0,0,0,0,0,0,0]
[101,"عناب شعيب","الرياضيات","متوسطة ابو هريرة ",null,null,null,null,null,null,null,null,null,null,null,null,null,null,0,0,0,0,0,0,0,0,0,0,0,0,0,0,{"$f":"COUNTA(L59:L59)","v":0},0,0,0,0,0,0,0,0,0,0]
[102,"عقاب أحمد","التربية البدنية","متوسطة ابو هريرة ",null,null,null,null,null,null,null,null,null,null,null,null,null,null,0,0,0,0,0,0,0,0,0,0,0,{"$f":"COUNTA(I60:I60)","v":0},0,0,0,0,0,0,0,0,0,0,0,0,0]
[103,"حدوين محمد","تكنولوجيا ","متوسطة ابو هريرة ",null,null,null,null,null,null,null,null,null,null,null,null,null,null,0,0,0,0,0,0,0,0,0,0,0,0,0,0,0,0,0,0,0,0,0,0,0,0,0]
[104,"تومي حمزة","الرياضيات","متوسطة ابو هريرة ",null,null,null,null,null,null,null,null,null,null,null,null,null,null,0,0,0,0,0,0,0,0,0,0,0,0,0,0,0,0,0,0,0,0,0,0,0,0,0]
[105,"غرفاتي عبد الرحمان","الرياضيات","إبتداية الخوارزمي - مغنية ",null,null,null,null,null,null,null,null,null,null,null,null,null,null,0,0,0,0,0,0,0,0,0,0,0,0,0,0,0,0,0,0,0,0,0,0,0,0,0]
[106,"صالح عبد الرحمان","تكنولوجيا ","إبتداية الخوارزمي - مغنية ",null,null,null,null,null,null,null,null,null,null,null,null,null,null,0,0,0,0,0,0,0,0,0,0,0,0,0,0,0,0,0,0,0,0,0,0,0,0,0]
[111,"بلحسين محمد","التربية البدنية","ثا.المقـــري ",null,null,null,null,null,null,null,null,null,null,null,null,null,null,0,0,0,0,0,0,0,0,0,0,0,0,0,0,0,0,0,0,0,0,0,0,0,0,0]
[114,"بهلولي سفيان","اللغة العربية",null,null,null,null,null,null,null,null,null,null,null,null,null,null,null,0,0,0,0,0,0,0,0,0,0,0,0,0,0,0,0,0,0,0,0,0,0,0,0,0]
[117,"شداد محمد ","الرياضيات",null,null,null,null,null,null,null,null,null,null,null,null,null,null,null,0,0,0,{"$f":"COUNTIF(L67,\"ح\")","v":0},0,0,0,0,0,0,0,0,0,0,0,0,0,0,0,0,0,0,0,0,0]
[118,"بلعسكري عبد القادر","اللغة الفرنسية",null,null,null,null,null,null,null,null,null,null,null,null,null,null,null,{"$f":"COUNTIF(I68,\"ح\")","v":0},{"$f":"COUNTIF(J68,\"ح\")","v":0},{"$f":"COUNTIF(K68,\"ح\")","v":0},0,0,0,0,0,0,0,0,0,0,0,0,0,0,0,0,0,0,0,0,0,0]
[null,null,null,null,null,null,null,null,null,null,null,null,null,null,null,null,null,null,0,0,0,0,0,0,0,0,0,0,0,0,0,0,0,0,0,0,0,0,0,0,0,0,0]
[1,"دفافني إيمان ","الرياضيات","ثا.بوعزة ميلود مغنية ",null,null,null,null,null,null,null,null,null,null,null,null,null,null,0,0,0,0,0,0,0,0,0,0,0,0,0,0,0,0,0,0,0,0,0,0,0,0,0]
[3,"بناصر حنان","الفيزياء والكيمياء","ثا.بوعزة ميلود مغنية ",null,null,null,null,null,null,null,null,null,null,null,null,null,null,0,0,0,0,0,0,0,0,0,0,{"$f":"AB71+AA71+Z71+Y71+X71+W71+U71+T71+S71+V71","v":0},0,0,0,0,0,0,0,{"$f":"COUNTA(Q71:Q71)","v":0},0,{"$f":"COUNTA(R71:R71)","v":0},{"$f":"AM71+AL71+AK71+AJ71+AI71+AH71+AG71+AF71+AE71+AD71","v":0},{"$f":"AC71","v":0},{"$f":"(AN71-AO71)/2","v":0},{"$f":"SUM(AD71:AN71)","v":0}]
[4,"بن فريد مليكة","علوم الطبيعة و الحياة ","ثا.بوعزة ميلود مغنية ",null,null,null,null,null,null,null,null,null,null,null,null,null,null,0,0,0,0,0,0,0,0,0,0,0,0,0,0,0,0,0,0,0,0,0,0,0,0,0]
[5,"حوض فاطمة","الفيزياء والكيمياء","ثا.بوعزة ميلود مغنية ",null,null,null,null,null,null,null,null,null,null,null,null,null,null,0,0,0,0,0,0,0,0,0,0,0,0,0,0,0,0,0,0,0,0,0,0,0,0,0]
[6,"محمدي حورية","اللغة العربية","ثا.بوعزة ميلود مغنية ",null,null,null,null,null,null,null,null,null,null,null,null,null,null,0,0,0,0,0,0,0,0,0,0,0,0,0,0,0,0,0,0,0,0,0,0,0,0,0]
[9,"أوبشير إيمان","اللغة العربية","ثا.بوعزة ميلود مغنية ",null,null,null,null,null,null,null,null,null,null,null,null,null,null,0,0,0,0,0,0,0,0,0,0,0,0,0,0,0,0,0,0,0,0,0,0,0,0,0]
[12,"جدير زكية","التاريخ والجغرافيا","إبتداية الخوارزمي - مغنية ",null,null,null,null,null,null,null,null,null,null,null,null,null,null,0,0,0,0,0,0,0,0,0,0,0,0,0,0,0,0,0,0,0,0,0,0,0,0,0]
[16,"بوسحابة رضية","اللغة الفرنسية","إبتداية الخوارزمي - مغنية ",null,null,null,null,null,null,null,null,null,null,null,null,null,null,0,0,0,0,0,0,0,0,0,0,0,0,0,0,0,0,0,0,0,0,0,0,0,0,0]
[18,"شيعلي وسيلة","تكنولوجيا ","إبتداية الخوارزمي - مغنية ",null,null,null,null,null,null,null,null,null,null,null,null,null,null,0,0,0,0,0,0,0,0,0,0,0,0,0,0,0,0,0,0,0,0,0,0,0,0,0]
[19,"بن صابر ليندة","اللغة الانجليزية","إبتداية الخوارزمي - مغنية ",null,null,null,null,null,null,null,null,null,null,null,null,null,null,0,0,0,0,0,0,0,0,0,0,0,0,0,0,0,0,0,0,0,0,0,0,0,0,0]
[21,"زاوي وفاء","اللغة العربية","إبتداية الخوارزمي - مغنية ",null,null,null,null,null,null,null,null,null,null,null,null,null,null,0,0,0,0,0,0,0,0,0,0,0,0,0,0,0,0,0,0,0,0,0,0,0,0,0]
[22,"بن أحمد هجيرة","علوم الطبيعة و الحياة ","إبتداية الخوارزمي - مغنية ",null,null,null,null,null,null,null,null,null,null,null,null,null,null,0,0,0,0,0,0,0,0,0,0,0,0,0,0,0,0,0,0,0,0,0,0,0,0,0]
[25,"ستيلي نعيمة","علوم الطبيعة و الحياة ","إبتداية الخوارزمي - مغنية ",null,null,null,null,null,null,null,null,null,null,null,null,null,null,0,0,0,0,0,0,0,0,0,0,0,0,0,0,0,0,0,0,0,0,0,0,0,0,0]
[26,"بن بختي نورية","الفيزياء والكيمياء","متوسطة ابو هريرة ",null,null,null,null,null,null,null,null,null,null,null,null,null,null,0,0,0,0,0,0,0,0,0,0,0,0,0,0,0,0,0,0,0,0,0,0,0,0,0]
[30,"ترابي نزيهة","علوم الطبيعة و الحياة ","متوسطة ابو هريرة ",null,null,null,null,null,null,null,null,null,null,null,null,null,null,0,0,0,0,0,0,0,0,0,0,0,0,0,0,0,0,0,0,0,0,0,0,0,0,0]
[31,"هداني خديجة","اللغة الفرنسية","متوسطة ابو هريرة ",null,null,null,null,null,null,null,null,null,null,null,null,null,null,0,0,0,0,0,0,0,0,0,0,0,0,0,0,0,0,0,0,0,0,0,0,0,0,0]
[32,"بدي إسمهان","اللغة العربية","متوسطة ابو هريرة ",null,null,null,null,null,null,null,null,null,null,null,null,null,null,0,0,0,0,0,0,0,0,0,0,0,0,0,0,0,0,0,0,0,0,0,0,0,0,0]
[33,"حطاب إيمان","اللغة العربية","متوسطة ابو هريرة ",null,null,null,null,null,null,null,null,null,null,null,null,null,null,0,0,0,0,0,0,0,0,0,0,0,0,0,0,0,0,0,0,0,0,0,0,0,0,0]
[35,"بن عيسى مريم","علوم الطبيعة و الحياة ","متوسطة ابو هريرة ",null,null,null,null,null,null,null,null,null,null,null,null,null,null,0,0,0,0,0,0,0,0,0,0,0,0,0,0,0,0,0,0,0,0,0,0,0,0,0]
[36,"كحلون حنان","اللغة الانجليزية","متوسطة ابو هريرة ",null,null,null,null,null,null,null,null,null,null,null,null,null,null,0,0,0,0,0,0,0,0,0,0,0,0,0,0,0,0,0,0,0,0,0,0,0,0,0]
[37,"مرابط فاطمة الزهراء","اللغة الفرنسية","متوسطة ابو هريرة ",null,null,null,null,null,null,null,null,null,null,null,null,null,null,0,0,0,0,0,0,0,0,0,0,0,0,0,0,0,0,0,0,0,0,0,0,0,0,0]
[43,"سراجي نسرين","اللغة الفرنسية","متوسطة العابدي - صبرة ",null,null,null,null,null,null,null,null,null,null,null,null,null,null,0,0,0,0,0,0,0,0,0,0,0,0,0,0,0,0,0,0,0,0,0,0,0,0,0]
[44,"حاج عبد القادر نورة","إسبانية","متوسطة العابدي - صبرة ",null,null,null,null,null,null,null,null,null,null,null,null,null,null,0,0,0,0,0,0,0,0,0,0,0,0,0,0,0,0,0,0,0,0,0,0,0,0,0]
[49,"خاطر سهام","الرياضيات","متوسطة العابدي - صبرة ",null,null,null,null,null,null,null,null,null,null,null,null,null,null,0,0,0,0,0,0,0,0,0,0,0,0,0,0,0,0,0,0,0,0,0,0,0,0,0]
[50,"عدو أمال","الفيزياء والكيمياء","متوسطة العابدي - صبرة ",null,null,null,null,null,null,null,null,null,null,null,null,null,null,0,0,0,0,0,0,0,0,0,0,0,0,0,0,0,0,0,0,0,0,0,0,0,0,0]
[51,"حبار نعيمة","علوم الطبيعة و الحياة ","متوسطة العابدي - صبرة ",null,null,null,null,null,null,null,null,null,null,null,null,null,null,0,0,0,0,0,0,0,0,0,0,0,0,0,0,0,0,0,0,0,0,0,0,0,0,0]
[52,"بويدوح فطيمة الزهراء","علوم الطبيعة و الحياة ","متوسطة العابدي - صبرة ",null,null,null,null,null,null,null,null,null,null,null,null,null,null,0,0,0,0,0,0,0,0,0,0,0,0,0,0,0,0,0,0,0,0,0,0,0,0,0]
[53,"زروال جميلة","اللغة العربية","إبتداية الخوارزمي - مغنية ",null,null,null,null,null,null,null,null,null,null,null,null,null,null,0,0,0,0,0,0,0,0,0,0,0,0,0,0,0,0,0,0,0,0,0,0,0,0,0]
[54,"دار يزيد حنان","الفلسفة ","إبتداية الخوارزمي - مغنية ",null,null,null,null,null,null,null,null,null,null,null,null,null,null,0,0,0,{"$f":"COUNTIF(L98,\"ح\")","v":0},0,0,0,0,0,0,0,0,0,0,0,0,0,0,0,0,0,0,0,0,0]
[56,"موس أمال","اللغة الفرنسية","إبتداية الخوارزمي - مغنية ",null,null,null,null,null,null,null,null,null,null,null,null,null,null,{"$f":"COUNTIF(I99,\"ح\")","v":0},0,0,0,0,0,0,0,0,0,0,0,0,0,0,0,0,0,0,0,0,0,0,0,0]
[58,"أوسالم فوزي","التربية بدنية ","ثا.المقـــري ",null,null,null,null,null,null,null,null,null,null,null,null,null,null,0,0,0,0,0,0,0,0,0,0,0,0,0,0,0,0,0,0,0,0,0,0,0,0,0]
[60,"زيان زوليخة","الرياضيات","ثا.المقـــري ",null,null,null,null,null,null,null,null,null,null,null,null,null,null,0,0,0,0,0,0,0,0,0,0,0,0,0,0,0,0,0,0,0,0,0,0,0,0,0]
[64,"ربيعي (بن شكور) أمال","اللغة العربية","ثا.المقـــري ",null,null,null,null,null,null,null,null,null,null,null,null,null,null,0,0,0,0,0,0,0,0,0,0,0,0,0,0,0,0,0,0,0,0,0,0,0,0,0]
[65,"بلحاج خيرة","تكنولوجيا ","ثا.المقـــري ",null,null,null,null,null,null,null,null,null,null,null,null,null,null,0,0,0,0,0,0,0,0,0,0,0,0,0,0,0,0,0,0,0,0,0,0,0,0,0]
[66,"نوالي وردة","اللغة الفرنسية","ثا.المقـــري ",null,null,null,null,null,null,null,null,null,null,null,null,null,null,0,0,0,0,0,0,0,0,0,0,0,0,0,0,0,0,0,0,0,0,0,0,0,0,0]
[67,"قرشي سهام","اللغة الفرنسية","ثا.المقـــري ",null,null,null,null,null,null,null,null,null,null,null,null,null,null,0,0,0,0,0,0,0,0,0,0,0,0,0,0,0,0,0,0,0,0,0,0,0,0,0]
[68,"إزناسني بشرى","اللغة الفرنسية","ثا.المقـــري ",null,null,null,null,null,null,null,null,null,null,null,null,null,null,0,0,0,0,0,0,0,0,0,0,0,0,0,0,0,0,0,0,0,0,0,0,0,0,0]
[80,"كاري (حوات) فوزية","اللغة الانجليزية","ثا.المقـــري ",null,null,null,null,null,null,null,null,null,null,null,null,null,null,0,0,0,0,0,0,0,0,0,0,0,0,0,0,0,0,0,0,0,0,0,0,0,0,0]
[82,"مالكي أمال","الرياضيات","إبتداية الخوارزمي - مغنية ",null,null,null,null,null,null,null,null,null,null,null,null,null,null,0,0,0,0,0,0,0,0,0,0,0,0,0,0,0,0,0,0,0,0,0,0,0,0,0]
[83,"بلهاشم رضية","اللغة الفرنسية","إبتداية الخوارزمي - مغنية ",null,null,null,null,null,null,null,null,null,null,null,null,null,null,0,0,0,0,0,0,0,0,0,0,0,0,0,0,0,0,0,0,0,0,0,0,0,0,0]
[86,"بلهادي رشيدة","اللغة العربية","متوسطة ابو هريرة ",null,null,null,null,null,null,null,null,null,null,null,null,null,null,0,0,0,0,0,0,0,0,0,0,0,0,0,0,0,0,0,0,0,0,0,0,0,0,0]
[87,"لخضاري حياة","اللغة الفرنسية","متوسطة ابو هريرة ",null,null,null,null,null,null,null,null,null,null,null,null,null,null,0,0,0,0,0,0,0,0,0,0,0,0,0,0,0,0,0,0,0,0,0,0,0,0,0]
[90,"هاشمي ربيحة","اللغة العربية","إبتداية الخوارزمي - مغنية ",null,null,null,null,null,null,null,null,null,null,null,null,null,null,0,0,0,0,0,0,0,0,0,0,0,0,0,0,0,0,0,0,0,0,0,0,0,0,0]
[91,"شارف نادية","اللغة العربية","إبتداية الخوارزمي - مغنية ",null,null,null,null,null,null,null,null,null,null,null,null,null,null,0,0,0,0,0,0,0,0,0,0,0,0,0,0,0,0,0,0,0,0,0,0,0,0,0]
[92,"عزي خديجة","اللغة الانجليزية","إبتداية الخوارزمي - مغنية ",null,null,null,null,null,null,null,null,null,null,null,null,null,null,0,0,0,0,0,0,0,0,0,0,0,0,0,0,0,0,0,0,0,0,0,0,0,0,0]
[96,"هواري أمينة","علوم الطبيعة و الحياة ","متوسطة ابو هريرة ",null,null,null,null,null,null,null,null,null,null,null,null,null,null,0,0,0,0,0,0,0,0,0,0,0,0,0,0,0,0,0,0,0,0,0,0,0,0,0]
[97,"غالمي ليلى","الفيزياء والكيمياء","إبتداية الخوارزمي - مغنية ",null,null,null,null,null,null,null,null,null,null,null,null,null,null,0,0,0,0,0,0,0,0,0,0,0,0,0,0,0,0,0,0,0,0,0,0,0,0,0]
[98,"سميلي أمال","اللغة الفرنسية","إبتداية الخوارزمي - مغنية ",null,null,null,null,null,null,null,null,null,null,null,null,null,null,0,0,0,0,0,0,0,0,0,0,0,0,0,0,0,0,0,0,0,0,0,0,0,0,0]
[107,"ميري فاطمة","اللغة الفرنسية","متوسطة العابدي - صبرة ",null,null,null,null,null,null,null,null,null,null,null,null,null,null,0,0,0,0,0,0,0,0,0,0,0,0,0,0,0,0,0,0,0,0,0,0,0,0,0]
[108,"حدوين وفاء","اللغة العربية","ثا.المقـــري ",null,null,null,null,null,null,null,null,null,null,null,null,null,null,0,0,0,0,0,0,0,0,0,0,0,0,0,0,0,0,0,0,0,0,0,0,0,0,0]
[109,"موسى (علاهم)خديجة","اللغة العربية","ثا.المقـــري ",null,null,null,null,null,null,null,null,null,null,null,null,null,null,0,0,0,0,0,0,0,0,0,0,0,0,0,0,0,0,0,0,0,0,0,0,0,0,0]
[110,"يحياوي يوسفي زينب","تكنولوجيا ","ثا.المقـــري ",null,null,null,null,null,null,null,null,null,null,null,null,null,null,0,0,0,0,0,0,0,0,0,0,0,0,0,0,0,0,0,{"$f":"COUNTA(O121:O121)","v":0},0,0,0,0,0,0,0]
[112,"بوسكاية فاطمة","التاريخ والجغرافيا","ثا.المقـــري ",null,null,null,null,null,null,null,null,null,null,null,null,null,null,0,0,0,0,0,0,0,0,0,0,0,0,0,0,0,0,0,0,0,0,0,0,0,0,0]
[113,"رفوفي سليمة","اللغة العربية","ثا.المقـــري ",null,null,null,null,null,null,null,null,null,null,null,null,null,null,0,0,0,0,0,0,0,0,0,0,0,{"$f":"COUNTA(I123:I123)","v":0},{"$f":"COUNTA(J123:J123)","v":0},{"$f":"COUNTA(K123:K123)","v":0},{"$f":"COUNTA(L123:L123)","v":0},{"$f":"COUNTA(M123:M123)","v":0},{"$f":"COUNTA(N123:N123)","v":0},0,0,0,0,0,0,0,0]
[115,"طاري حياة","التاريخ والجغرافيا",null,null,null,null,null,null,null,null,null,null,null,null,null,null,null,0,0,0,0,0,0,0,{"$f":"COUNTIF(P124,\"ح\")","v":0},{"$f":"COUNTIF(Q124,\"ح\")","v":0},{"$f":"COUNTIF(R124,\"ح\")","v":0},0,0,0,0,0,0,0,0,0,0,0,0,0,0,0]
[116,"شعبان سامية","علوم الطبيعة و الحياة ",null,null,null,null,null,null,null,null,null,null,null,null,null,null,null,{"$f":"COUNTIF(I125,\"ح\")","v":0},{"$f":"COUNTIF(J125,\"ح\")","v":0},{"$f":"COUNTIF(K125,\"ح\")","v":0},{"$f":"COUNTIF(L125,\"ح\")","v":0},{"$f":"COUNTIF(M125,\"ح\")","v":0},{"$f":"COUNTIF(N125,\"ح\")","v":0},{"$f":"COUNTIF(O125,\"ح\")","v":0},0,0,0,0,0,0,0,0,0,0,0,0,0,0,0,0,0,0]
[null,null,null,null,null,null,null,null,null,null,null,null,null,null,null,null,null,null,0,0,0,0,0,0,0,0,0,0,0,0,0,0,0,0,0,0,0,0,0,0,0,0,0]
[null,null,null,null,null,null,null,null,null,null,null,null,null,null,null,null,null,null,0,0,0,0,0,0,0,0,0,0,0,0,0,0,0,0,0,0,0,0,0,0,0,0,0]
[null,null,null,null,null,null,null,null,null,null,null,null,null,null,null,null,null,null,0,0,0,0,0,0,0,0,0,0,0,0,0,0,0,0,0,0,0,0,0,0,0,0,0]
[null,null,null,null,null,null,null,null,null,null,null,null,null,null,null,null,null,null,0,0,0,0,0,0,0,0,0,0,0,0,0,0,0,0,0,0,0,0,0,0,0,0,0]
[null,null,null,null,null,null,null,null,null,null,null,null,null,null,null,null,null,null,0,0,0,0,0,0,0,0,0,0,0,0,0,0,0,0,0,0,0,0,0,0,0,0,0]
[null,null,null,null,null,null,null,null,null,null,null,null,null,null,null,null,null,null,0,0,0,0,0,0,0,0,0,0,0,0,0,0,0,0,0,0,0,0,0,0,0,0,0]
[null,null,null,null,null,null,null,null,null,null,null,null,null,null,null,null,null,null,0,0,0,0,0,0,0,0,0,0,0,0,0,0,0,0,0,0,0,0,0,0,0,0,0]
[null,null,null,null,null,null,null,null,null,null,null,null,null,null,null,null,null,null,0,0,0,0,0,0,0,0,0,0,0,0,0,0,0,0,0,0,0,0,0,0,0,0,0]
[null,null,null,null,null,null,null,null,null,null,null,null,null,null,null,null,null,null,0,0,0,0,0,0,0,0,0,0,0,0,0,0,0,0,0,0,0,0,0,0,0,0,0]
[]
[null,null,null,null,null,null,null,null,{"$f":"COUNTA(I7:I134)","v":36},27,0,0,0,0,0,0,0,0]

{"sheet":"ج حراسة","index":4,"n_rows":44,"n_cols":35,"rows_kept":44,"cut":false,"hidden":false,"merged":[[4,3,4,5],[38,2,38,3],[38,4,38,5],[38,6,38,7],[39,2,39,3],[39,4,39,5],[39,6,39,7],[37,2,37,7],[0,0,0,7],[6,2,6,3],[35,1,35,5],[11,2,11,3],[11,4,11,5],[11,6,11,7],[12,2,12,3],[12,4,12,5],[12,6,12,7],[13,2,13,3],[13,4,13,5],[13,6,13,7],[14,2,14,3],[14,4,14,5],[14,6,14,7],[15,2,15,3],[0,33,1,33],[0,34,2,34],[1,0,1,3],[1,5,1,7],[1,26,1,28],[2,0,2,2],[2,3,2,5],[2,7,2,8],[2,24,2,25],[2,33,3,33],[3,0,3,2],[3,3,3,4],[3,7,3,8],[3,21,3,23],[6,23,6,24],[8,2,8,3],[8,4,8,5],[8,6,8,7],[8,23,8,24],[8,26,8,27],[9,23,9,24],[10,23,10,24],[10,26,10,27],[9,2,9,3],[9,4,9,5],[9,6,9,7],[10,2,10,3],[10,4,10,5],[10,6,10,7],[11,23,11,24],[11,26,11,27],[12,23,12,24],[12,26,12,27],[13,23,13,24],[13,26,13,27],[14,23,14,24],[14,26,14,27],[15,23,15,24],[15,26,15,27],[16,23,16,24],[16,26,16,27],[17,23,17,24],[17,26,17,27],[18,23,18,24],[18,26,18,27],[33,1,33,5],[33,6,33,7],[34,1,34,5],[34,6,34,7],[21,2,21,3],[21,4,21,5],[21,6,21,7],[22,2,22,3],[22,4,22,5],[22,6,22,7],[23,2,23,3],[23,4,23,5],[23,6,23,7],[24,2,24,3],[24,4,24,5],[24,6,24,7],[25,2,25,3],[25,4,25,5],[43,2,43,3],[40,2,40,3],[40,4,40,5],[40,6,40,7],[41,2,41,3],[41,4,41,5],[41,6,41,7],[42,2,42,3],[42,4,42,5],[42,6,42,7],[43,4,43,5],[43,6,43,7],[15,4,15,5],[15,6,15,7],[16,2,16,3],[16,4,16,5],[16,6,16,7],[17,2,17,3],[17,4,17,5],[17,6,17,7],[27,6,27,7],[28,2,28,3],[28,4,28,5],[28,6,28,7],[18,2,18,3],[18,4,18,5],[18,6,18,7],[19,2,19,3],[19,4,19,5],[19,6,19,7],[20,2,20,3],[20,4,20,5],[20,6,20,7],[25,6,25,7],[26,2,26,3],[26,4,26,5],[26,6,26,7],[27,2,27,3],[27,4,27,5],[32,2,32,3],[32,4,32,5],[32,6,32,7],[29,2,29,3],[29,4,29,5],[29,6,29,7],[30,2,30,3],[30,4,30,5],[30,6,30,7],[31,2,31,3],[31,4,31,5],[31,6,31,7]]}
["الجمهوريــة الجزائريــة الديمقراطيــة الشعبيــة",null,null,null,null,null,null,null,null,null,null,null,null,null,null,null,null,null,null,null,null,null,null,null,null,null,null,null,null,null,null,null,null,{"$f":"VLOOKUP(AI1,ROZ,3,0)","v":"2019-06-16"},2]
["وزارة التربيــة الوطنيــــة",null,null,null,null,"الديـوان الوطـني للامتحانات والمسابقات",null,null,null,null,"وزارة التربيــة الوطنيــــة"]
["مـركــــز الإجـــــــراء:",null,null,{"$f":"المعطيات!C6","v":"ثانوية بوزيدي محمد "},null,null,"الرمز:",{"$f":"المعطيات!C7","v":7182},null,null,"مركز الإجراء:",null,null,null,null,null,null,null,null,null,null,null,null,null,null,null,null,null,null,null,null,null,null,{"$f":"VLOOKUP(AI1,ROZ,6,0)","v":"المسائية"}]
[" امتحـان شهــادة:",null,null,{"$f":"المعطيات!C5","v":"شهادة البكالوريا"},null,null,"دورة:",{"$f":"المعطيات!G5","v":"جوان   2019"},null,null,"امتحان شهادة:"]
[null,null,null,"جـــــدول الحراسة"]
[]
[null,"ليـوم:",{"$f":"AH1","v":"2019-06-16"},null,null,null,"الفترة :",{"$f":"AH3","v":"المسائية"},null,null,null,null,null,null,null,null,null,null,null,null,null,null,"ليوم:",{"$f":"C7","v":"2019-06-16"},null,null,null,{"$f":"G7&\" \"&H7","v":"الفترة : المسائية"}]
[null,null,null,null,null,null,null,null,null,null,null,null,null,null,null,null,null,null,null,null,null,null,null,"ح"]
[null,"الحجرة ","الحـــارس(ة) الأول",null,"الحـارس(ة) الثانــي",null,"الحــارس(ة) الثالـث",null,null,null,null,null,null,null,null,null,null,null,null,null,null,null,"الرقم","لقب واسم الحارس(ة) ",null,"الرقم","لقب واسم الحارس(ة) "]
[null,1,{"$f":"INDEX(data2!$B$7:$B$134,MATCH(\"ر\"&$B10,OFFSET(data2!$H$7:$H$134,,$AI$1),0))","v":"الوازن توفيق "},null,{"$f":"INDEX(data2!$B$7:$B$134,MATCH($B10,OFFSET(data2!$H$7:$H$134,,$AI$1),0))","v":"العياطي عبد الفتاح"},null,{"$f":"INDEX(data2!$B$7:$B$134,SMALL(IF(OFFSET(data2!$H$7:$H$134,,$AI$1)=$B10,ROW($7:$134)-6),2))","v":"عبوين كمال"},null,null,null,null,null,null,null,null,null,null,null,null,null,null,null,1,{"$error":"#NAME?"},null,18,{"$error":"#NAME?"}]
[null,2,{"$f":"INDEX(data2!$B$7:$B$134,MATCH(\"ر\"&$B11,OFFSET(data2!$H$7:$H$134,,$AI$1),0))","v":"بوزار عبد الباسط"},null,{"$f":"INDEX(data2!$B$7:$B$134,MATCH($B11,OFFSET(data2!$H$7:$H$134,,$AI$1),0))","v":"فقيه عبد الخالق"},null,{"$f":"INDEX(data2!$B$7:$B$134,SMALL(IF(OFFSET(data2!$H$7:$H$134,,$AI$1)=$B11,ROW($7:$134)-6),2))","v":"تاجوري كريم"},null,null,null,null,null,null,null,null,null,null,null,null,null,null,null,2,{"$error":"#NAME?"},null,19,{"$error":"#NAME?"}]
[null,3,{"$f":"INDEX(data2!$B$7:$B$134,MATCH(\"ر\"&$B12,OFFSET(data2!$H$7:$H$134,,$AI$1),0))","v":"قادري حسن"},null,{"$f":"INDEX(data2!$B$7:$B$134,MATCH($B12,OFFSET(data2!$H$7:$H$134,,$AI$1),0))","v":"ديب عبد الحفيظ"},null,{"$f":"INDEX(data2!$B$7:$B$134,SMALL(IF(OFFSET(data2!$H$7:$H$134,,$AI$1)=$B12,ROW($7:$134)-6),2))","v":"سليمان محمد"},null,null,null,null,null,null,null,null,null,null,null,null,null,null,null,3,{"$error":"#NAME?"},null,13,{"$error":"#NAME?"}]
[null,4,{"$f":"INDEX(data2!$B$7:$B$134,MATCH(\"ر\"&$B13,OFFSET(data2!$H$7:$H$134,,$AI$1),0))","v":"بوعرفاوي أمين"},null,{"$f":"INDEX(data2!$B$7:$B$134,MATCH($B13,OFFSET(data2!$H$7:$H$134,,$AI$1),0))","v":"بوغزال عبد العزيز"},null,{"$f":"INDEX(data2!$B$7:$B$134,SMALL(IF(OFFSET(data2!$H$7:$H$134,,$AI$1)=$B13,ROW($7:$134)-6),2))","v":"ديني محمد"},null,null,null,null,null,null,null,null,null,null,null,null,null,null,null,4,{"$error":"#NAME?"},null,14,{"$error":"#NAME?"}]
[null,5,{"$f":"INDEX(data2!$B$7:$B$134,MATCH(\"ر\"&$B14,OFFSET(data2!$H$7:$H$134,,$AI$1),0))","v":"موس محمد"},null,{"$f":"INDEX(data2!$B$7:$B$134,MATCH($B14,OFFSET(data2!$H$7:$H$134,,$AI$1),0))","v":"بريرج فتحي"},null,{"$f":"INDEX(data2!$B$7:$B$134,SMALL(IF(OFFSET(data2!$H$7:$H$134,,$AI$1)=$B14,ROW($7:$134)-6),2))","v":"بلتشين عبد النبي"},null,null,null,null,null,null,null,null,null,null,null,null,null,null,null,5,{"$error":"#NAME?"},null,15,{"$error":"#NAME?"}]
[null,6,{"$f":"INDEX(data2!$B$7:$B$134,MATCH(\"ر\"&$B15,OFFSET(data2!$H$7:$H$134,,$AI$1),0))","v":"بن هدية عبد الجبار"},null,{"$f":"INDEX(data2!$B$7:$B$134,MATCH($B15,OFFSET(data2!$H$7:$H$134,,$AI$1),0))","v":"سعيد حسين"},null,{"$f":"INDEX(data2!$B$7:$B$134,SMALL(IF(OFFSET(data2!$H$7:$H$134,,$AI$1)=$B15,ROW($7:$134)-6),2))","v":"بيوض لوط"},null,null,null,null,null,null,null,null,null,null,null,null,null,null,-1,6,{"$error":"#NAME?"},null,16,{"$error":"#NAME?"}]
[null,7,{"$f":"INDEX(data2!$B$7:$B$134,MATCH(\"ر\"&$B16,OFFSET(data2!$H$7:$H$134,,$AI$1),0))","v":"نمر عبد الكريم"},null,{"$f":"INDEX(data2!$B$7:$B$134,MATCH($B16,OFFSET(data2!$H$7:$H$134,,$AI$1),0))","v":"يعقوبي خالد"},null,{"$f":"INDEX(data2!$B$7:$B$134,SMALL(IF(OFFSET(data2!$H$7:$H$134,,$AI$1)=$B16,ROW($7:$134)-6),2))","v":"طالبي عبد القادر"},null,null,null,null,null,null,null,null,null,null,null,null,null,null,-2,7,{"$error":"#NAME?"},null,17,{"$error":"#NAME?"}]
[null,8,{"$f":"INDEX(data2!$B$7:$B$134,MATCH(\"ر\"&$B17,OFFSET(data2!$H$7:$H$134,,$AI$1),0))","v":"بن ثابت محمد"},null,{"$f":"INDEX(data2!$B$7:$B$134,MATCH($B17,OFFSET(data2!$H$7:$H$134,,$AI$1),0))","v":"قدودو إلياس"},null,{"$f":"INDEX(data2!$B$7:$B$134,SMALL(IF(OFFSET(data2!$H$7:$H$134,,$AI$1)=$B17,ROW($7:$134)-6),2))","v":"خضراوي محمد زين عابدين"},null,null,null,null,null,null,null,null,null,null,null,null,null,null,null,8,{"$error":"#NAME?"},null,18,{"$error":"#NAME?"}]
[null,9,{"$f":"INDEX(data2!$B$7:$B$134,MATCH(\"ر\"&$B18,OFFSET(data2!$H$7:$H$134,,$AI$1),0))","v":"بن أحمد عبد المومن"},null,{"$f":"INDEX(data2!$B$7:$B$134,MATCH($B18,OFFSET(data2!$H$7:$H$134,,$AI$1),0))","v":"لحسين محمد"},null,{"$f":"INDEX(data2!$B$7:$B$134,SMALL(IF(OFFSET(data2!$H$7:$H$134,,$AI$1)=$B18,ROW($7:$134)-6),2))","v":"بن طيب زكرياء"},null,null,null,null,null,null,null,null,null,null,null,null,null,null,null,9,{"$error":"#NAME?"},null,19,{"$error":"#NAME?"}]
[null,10,{"$f":"INDEX(data2!$B$7:$B$134,MATCH(\"ر\"&$B19,OFFSET(data2!$H$7:$H$134,,$AI$1),0))","v":{"$error":"#N/A"}},null,{"$f":"INDEX(data2!$B$7:$B$134,MATCH($B19,OFFSET(data2!$H$7:$H$134,,$AI$1),0))","v":{"$error":"#N/A"}},null,{"$f":"INDEX(data2!$B$7:$B$134,SMALL(IF(OFFSET(data2!$H$7:$H$134,,$AI$1)=$B19,ROW($7:$134)-6),2))","v":{"$error":"#NUM!"}},null,null,null,null,null,null,null,null,null,null,null,null,null,null,null,10,{"$error":"#NAME?"},null,20,{"$error":"#NAME?"}]
[null,11,{"$f":"INDEX(data2!$B$7:$B$134,MATCH(\"ر\"&$B20,OFFSET(data2!$H$7:$H$134,,$AI$1),0))","v":{"$error":"#N/A"}},null,{"$f":"INDEX(data2!$B$7:$B$134,MATCH($B20,OFFSET(data2!$H$7:$H$134,,$AI$1),0))","v":{"$error":"#N/A"}},null,{"$f":"INDEX(data2!$B$7:$B$134,SMALL(IF(OFFSET(data2!$H$7:$H$134,,$AI$1)=$B20,ROW($7:$134)-6),2))","v":{"$error":"#NUM!"}},null,null,null,null,null,null,null,null,null,null,null,null,null,null,null,1,{"$error":"#NAME?"},null,23,{"$error":"#NAME?"}]
[null,12,{"$f":"INDEX(data2!$B$7:$B$134,MATCH(\"ر\"&$B21,OFFSET(data2!$H$7:$H$134,,$AI$1),0))","v":{"$error":"#N/A"}},null,{"$f":"INDEX(data2!$B$7:$B$134,MATCH($B21,OFFSET(data2!$H$7:$H$134,,$AI$1),0))","v":{"$error":"#N/A"}},null,{"$f":"INDEX(data2!$B$7:$B$134,SMALL(IF(OFFSET(data2!$H$7:$H$134,,$AI$1)=$B21,ROW($7:$134)-6),2))","v":{"$error":"#NUM!"}},null,null,null,null,null,null,null,null,null,null,null,null,null,null,null,2,{"$error":"#NAME?"},null,24,{"$error":"#NAME?"}]
[null,13,{"$f":"INDEX(data2!$B$7:$B$134,MATCH(\"ر\"&$B22,OFFSET(data2!$H$7:$H$134,,$AI$1),0))","v":{"$error":"#N/A"}},null,{"$f":"INDEX(data2!$B$7:$B$134,MATCH($B22,OFFSET(data2!$H$7:$H$134,,$AI$1),0))","v":{"$error":"#N/A"}},null,{"$f":"INDEX(data2!$B$7:$B$134,SMALL(IF(OFFSET(data2!$H$7:$H$134,,$AI$1)=$B22,ROW($7:$134)-6),2))","v":{"$error":"#NUM!"}},null,null,null,null,null,null,null,null,null,null,null,null,null,null,null,3,{"$error":"#NAME?"},null,25,{"$error":"#NAME?"}]
[null,14,{"$f":"INDEX(data2!$B$7:$B$134,MATCH(\"ر\"&$B23,OFFSET(data2!$H$7:$H$134,,$AI$1),0))","v":{"$error":"#N/A"}},null,{"$f":"INDEX(data2!$B$7:$B$134,MATCH($B23,OFFSET(data2!$H$7:$H$134,,$AI$1),0))","v":{"$error":"#N/A"}},null,{"$f":"INDEX(data2!$B$7:$B$134,SMALL(IF(OFFSET(data2!$H$7:$H$134,,$AI$1)=$B23,ROW($7:$134)-6),2))","v":{"$error":"#NUM!"}},null,null,null,null,null,null,null,null,null,null,null,null,null,null,null,4,{"$error":"#NAME?"},null,26,{"$error":"#NAME?"}]
[null,15,{"$f":"INDEX(data2!$B$7:$B$134,MATCH(\"ر\"&$B24,OFFSET(data2!$H$7:$H$134,,$AI$1),0))","v":{"$error":"#N/A"}},null,{"$f":"INDEX(data2!$B$7:$B$134,MATCH($B24,OFFSET(data2!$H$7:$H$134,,$AI$1),0))","v":{"$error":"#N/A"}},null,{"$f":"INDEX(data2!$B$7:$B$134,SMALL(IF(OFFSET(data2!$H$7:$H$134,,$AI$1)=$B24,ROW($7:$134)-6),2))","v":{"$error":"#NUM!"}},null,null,null,null,null,null,null,null,null,null,null,null,null,null,null,5,{"$error":"#NAME?"},null,27,{"$error":"#NAME?"}]
[null,16,{"$f":"INDEX(data2!$B$7:$B$134,MATCH(\"ر\"&$B25,OFFSET(data2!$H$7:$H$134,,$AI$1),0))","v":{"$error":"#N/A"}},null,{"$f":"INDEX(data2!$B$7:$B$134,MATCH($B25,OFFSET(data2!$H$7:$H$134,,$AI$1),0))","v":{"$error":"#N/A"}},null,{"$f":"INDEX(data2!$B$7:$B$134,SMALL(IF(OFFSET(data2!$H$7:$H$134,,$AI$1)=$B25,ROW($7:$134)-6),2))","v":{"$error":"#NUM!"}},null,null,null,null,null,null,null,null,null,null,null,null,null,null,null,6,{"$error":"#NAME?"},null,28,{"$error":"#NAME?"}]
[null,17,{"$f":"INDEX(data2!$B$7:$B$134,MATCH(\"ر\"&$B26,OFFSET(data2!$H$7:$H$134,,$AI$1),0))","v":{"$error":"#N/A"}},null,{"$f":"INDEX(data2!$B$7:$B$134,MATCH($B26,OFFSET(data2!$H$7:$H$134,,$AI$1),0))","v":{"$error":"#N/A"}},null,{"$f":"INDEX(data2!$B$7:$B$134,SMALL(IF(OFFSET(data2!$H$7:$H$134,,$AI$1)=$B26,ROW($7:$134)-6),2))","v":{"$error":"#NUM!"}},null,null,null,null,null,null,null,null,null,null,null,null,null,null,null,7,{"$error":"#NAME?"},null,29,{"$error":"#NAME?"}]
[null,18,{"$f":"INDEX(data2!$B$7:$B$134,MATCH(\"ر\"&$B27,OFFSET(data2!$H$7:$H$134,,$AI$1),0))","v":{"$error":"#N/A"}},null,{"$f":"INDEX(data2!$B$7:$B$134,MATCH($B27,OFFSET(data2!$H$7:$H$134,,$AI$1),0))","v":{"$error":"#N/A"}},null,{"$f":"INDEX(data2!$B$7:$B$134,SMALL(IF(OFFSET(data2!$H$7:$H$134,,$AI$1)=$B27,ROW($7:$134)-6),2))","v":{"$error":"#NUM!"}},null,null,null,null,null,null,null,null,null,null,null,null,null,null,null,8,{"$error":"#NAME?"},null,30,{"$error":"#NAME?"}]
[null,19,{"$f":"INDEX(data2!$B$7:$B$134,MATCH(\"ر\"&$B28,OFFSET(data2!$H$7:$H$134,,$AI$1),0))","v":{"$error":"#N/A"}},null,{"$f":"INDEX(data2!$B$7:$B$134,MATCH($B28,OFFSET(data2!$H$7:$H$134,,$AI$1),0))","v":{"$error":"#N/A"}},null,{"$f":"INDEX(data2!$B$7:$B$134,SMALL(IF(OFFSET(data2!$H$7:$H$134,,$AI$1)=$B28,ROW($7:$134)-6),2))","v":{"$error":"#NUM!"}},null,null,null,null,null,null,null,null,null,null,null,null,null,null,null,9,{"$error":"#NAME?"},null,31,{"$error":"#NAME?"}]
[null,20,{"$f":"INDEX(data2!$B$7:$B$134,MATCH(\"ر\"&$B29,OFFSET(data2!$H$7:$H$134,,$AI$1),0))","v":{"$error":"#N/A"}},null,{"$f":"INDEX(data2!$B$7:$B$134,MATCH($B29,OFFSET(data2!$H$7:$H$134,,$AI$1),0))","v":{"$error":"#N/A"}},null,{"$f":"INDEX(data2!$B$7:$B$134,SMALL(IF(OFFSET(data2!$H$7:$H$134,,$AI$1)=$B29,ROW($7:$134)-6),2))","v":{"$error":"#NUM!"}},null,null,null,null,null,null,null,null,null,null,null,null,null,null,null,10,{"$error":"#NAME?"},null,32,{"$error":"#NAME?"}]
[null,21,{"$f":"INDEX(data2!$B$7:$B$134,MATCH(\"ر\"&$B30,OFFSET(data2!$H$7:$H$134,,$AI$1),0))","v":{"$error":"#N/A"}},null,{"$f":"INDEX(data2!$B$7:$B$134,MATCH($B30,OFFSET(data2!$H$7:$H$134,,$AI$1),0))","v":{"$error":"#N/A"}},null,{"$f":"INDEX(data2!$B$7:$B$134,SMALL(IF(OFFSET(data2!$H$7:$H$134,,$AI$1)=$B30,ROW($7:$134)-6),2))","v":{"$error":"#NUM!"}},null,null,null,null,null,null,null,null,null,null,null,null,null,null,null,11,{"$error":"#NAME?"},null,33,{"$error":"#NAME?"}]
[null,22,{"$f":"INDEX(data2!$B$7:$B$134,MATCH(\"ر\"&$B31,OFFSET(data2!$H$7:$H$134,,$AI$1),0))","v":{"$error":"#N/A"}},null,{"$f":"INDEX(data2!$B$7:$B$134,MATCH($B31,OFFSET(data2!$H$7:$H$134,,$AI$1),0))","v":{"$error":"#N/A"}},null,{"$f":"INDEX(data2!$B$7:$B$134,SMALL(IF(OFFSET(data2!$H$7:$H$134,,$AI$1)=$B31,ROW($7:$134)-6),2))","v":{"$error":"#NUM!"}},null,null,null,null,null,null,null,null,null,null,null,null,null,null,null,12,{"$error":"#NAME?"},null,34,{"$error":"#NAME?"}]
[null,23,{"$f":"INDEX(data2!$B$7:$B$134,MATCH(\"ر\"&$B32,OFFSET(data2!$H$7:$H$134,,$AI$1),0))","v":{"$error":"#N/A"}},null,{"$f":"INDEX(data2!$B$7:$B$134,MATCH($B32,OFFSET(data2!$H$7:$H$134,,$AI$1),0))","v":{"$error":"#N/A"}},null,{"$f":"INDEX(data2!$B$7:$B$134,SMALL(IF(OFFSET(data2!$H$7:$H$134,,$AI$1)=$B32,ROW($7:$134)-6),2))","v":{"$error":"#NUM!"}},null,null,null,null,null,null,null,null,null,null,null,null,null,null,null,13,{"$error":"#NAME?"},null,35,{"$error":"#NAME?"}]
[null,24,{"$f":"INDEX(data2!$B$7:$B$134,MATCH(\"ر\"&$B33,OFFSET(data2!$H$7:$H$134,,$AI$1),0))","v":{"$error":"#N/A"}},null,{"$f":"INDEX(data2!$B$7:$B$134,MATCH($B33,OFFSET(data2!$H$7:$H$134,,$AI$1),0))","v":{"$error":"#N/A"}},null,{"$f":"INDEX(data2!$B$7:$B$134,SMALL(IF(OFFSET(data2!$H$7:$H$134,,$AI$1)=$B33,ROW($7:$134)-6),2))","v":{"$error":"#NUM!"}},null,null,null,null,null,null,null,null,null,null,null,null,null,null,null,14,{"$error":"#NAME?"},null,36,{"$error":"#NAME?"}]
[-1,"  الحارس الرئيسي مسؤول  عن استلام ملف القاعة  من أمانة المركز .",null,null,null,null,"لقب واسم رئيس(ة) المركز",null,null,null,null,null,null,null,null,null,null,null,null,null,null,null,15,{"$error":"#NAME?"},null,37,{"$error":"#NAME?"}]
[-2,"  الحراس الإحتياطيون لا يمكنهم مغادرة المركز إلا بعد التوقيع على ورقة الحضور.",null,null,null,null,"الختــــم والإمـضـــــــــاء",null,null,null,null,null,null,null,null,null,null,null,null,null,null,null,16,{"$error":"#NAME?"},null,38,{"$error":"#NAME?"}]
[-3,"كل حراس  الفترة الصباحية معنيون بحراسة الفترة المسائية.",null,null,null,null,null,null,null,null,null,null,null,null,null,null,null,null,null,null,null,null,17,{"$error":"#NAME?"},null,39,{"$error":"#NAME?"}]
[]
[null,null,"الحــــــــــــــــراس الاحتياطيون"]
[null,null,{"$f":"IF(COUNTIF(OFFSET(data2!$H$7:$H$134,,$AI$1),\"ح\")>=ROW($A1),INDEX(data2!$B$7:$B$134,SMALL(IF(OFFSET(data2!$H$7:$H$134,,$AI$1)=\"ح\",ROW($7:$134)-6),ROW($A1))),\"\")","v":""},null,{"$f":"IF(COUNTIF(OFFSET(data2!$H$7:$H$134,,$AI$1),\"ح\")>=ROW($A7),INDEX(data2!$B$7:$B$134,SMALL(IF(OFFSET(data2!$H$7:$H$134,,$AI$1)=\"ح\",ROW($7:$134)-6),ROW($A7))),\"\")","v":""},null,{"$f":"IF(COUNTIF(OFFSET(data2!$H$7:$H$134,,$AI$1),\"ح\")>=ROW($A13),INDEX(data2!$B$7:$B$134,SMALL(IF(OFFSET(data2!$H$7:$H$134,,$AI$1)=\"ح\",ROW($7:$134)-6),ROW($A13))),\"\")","v":""}]
[null,null,{"$f":"IF(COUNTIF(OFFSET(data2!$H$7:$H$134,,$AI$1),\"ح\")>=ROW($A2),INDEX(data2!$B$7:$B$134,SMALL(IF(OFFSET(data2!$H$7:$H$134,,$AI$1)=\"ح\",ROW($7:$134)-6),ROW($A2))),\"\")","v":""},null,{"$f":"IF(COUNTIF(OFFSET(data2!$H$7:$H$134,,$AI$1),\"ح\")>=ROW($A8),INDEX(data2!$B$7:$B$134,SMALL(IF(OFFSET(data2!$H$7:$H$134,,$AI$1)=\"ح\",ROW($7:$134)-6),ROW($A8))),\"\")","v":""},null,{"$f":"IF(COUNTIF(OFFSET(data2!$H$7:$H$134,,$AI$1),\"ح\")>=ROW($A14),INDEX(data2!$B$7:$B$134,SMALL(IF(OFFSET(data2!$H$7:$H$134,,$AI$1)=\"ح\",ROW($7:$134)-6),ROW($A14))),\"\")","v":""}]
[null,null,{"$f":"IF(COUNTIF(OFFSET(data2!$H$7:$H$134,,$AI$1),\"ح\")>=ROW($A3),INDEX(data2!$B$7:$B$134,SMALL(IF(OFFSET(data2!$H$7:$H$134,,$AI$1)=\"ح\",ROW($7:$134)-6),ROW($A3))),\"\")","v":""},null,{"$f":"IF(COUNTIF(OFFSET(data2!$H$7:$H$134,,$AI$1),\"ح\")>=ROW($A9),INDEX(data2!$B$7:$B$134,SMALL(IF(OFFSET(data2!$H$7:$H$134,,$AI$1)=\"ح\",ROW($7:$134)-6),ROW($A9))),\"\")","v":""},null,{"$f":"IF(COUNTIF(OFFSET(data2!$H$7:$H$134,,$AI$1),\"ح\")>=ROW($A15),INDEX(data2!$B$7:$B$134,SMALL(IF(OFFSET(data2!$H$7:$H$134,,$AI$1)=\"ح\",ROW($7:$134)-6),ROW($A15))),\"\")","v":""}]
[null,null,{"$f":"IF(COUNTIF(OFFSET(data2!$H$7:$H$134,,$AI$1),\"ح\")>=ROW($A4),INDEX(data2!$B$7:$B$134,SMALL(IF(OFFSET(data2!$H$7:$H$134,,$AI$1)=\"ح\",ROW($7:$134)-6),ROW($A4))),\"\")","v":""},null,{"$f":"IF(COUNTIF(OFFSET(data2!$H$7:$H$134,,$AI$1),\"ح\")>=ROW($A10),INDEX(data2!$B$7:$B$134,SMALL(IF(OFFSET(data2!$H$7:$H$134,,$AI$1)=\"ح\",ROW($7:$134)-6),ROW($A10))),\"\")","v":""},null,{"$f":"IF(COUNTIF(OFFSET(data2!$H$7:$H$134,,$AI$1),\"ح\")>=ROW($A16),INDEX(data2!$B$7:$B$134,SMALL(IF(OFFSET(data2!$H$7:$H$134,,$AI$1)=\"ح\",ROW($7:$134)-6),ROW($A16))),\"\")","v":""}]
[null,null,{"$f":"IF(COUNTIF(OFFSET(data2!$H$7:$H$134,,$AI$1),\"ح\")>=ROW($A5),INDEX(data2!$B$7:$B$134,SMALL(IF(OFFSET(data2!$H$7:$H$134,,$AI$1)=\"ح\",ROW($7:$134)-6),ROW($A5))),\"\")","v":""},null,{"$f":"IF(COUNTIF(OFFSET(data2!$H$7:$H$134,,$AI$1),\"ح\")>=ROW($A11),INDEX(data2!$B$7:$B$134,SMALL(IF(OFFSET(data2!$H$7:$H$134,,$AI$1)=\"ح\",ROW($7:$134)-6),ROW($A11))),\"\")","v":""},null,{"$f":"IF(COUNTIF(OFFSET(data2!$H$7:$H$134,,$AI$1),\"ح\")>=ROW($A17),INDEX(data2!$B$7:$B$134,SMALL(IF(OFFSET(data2!$H$7:$H$134,,$AI$1)=\"ح\",ROW($7:$134)-6),ROW($A17))),\"\")","v":""}]
[null,null,{"$f":"IF(COUNTIF(OFFSET(data2!$H$7:$H$134,,$AI$1),\"ح\")>=ROW($A6),INDEX(data2!$B$7:$B$134,SMALL(IF(OFFSET(data2!$H$7:$H$134,,$AI$1)=\"ح\",ROW($7:$134)-6),ROW($A6))),\"\")","v":""},null,{"$f":"IF(COUNTIF(OFFSET(data2!$H$7:$H$134,,$AI$1),\"ح\")>=ROW($A12),INDEX(data2!$B$7:$B$134,SMALL(IF(OFFSET(data2!$H$7:$H$134,,$AI$1)=\"ح\",ROW($7:$134)-6),ROW($A12))),\"\")","v":""},null,{"$f":"IF(COUNTIF(OFFSET(data2!$H$7:$H$134,,$AI$1),\"ح\")>=ROW($A18),INDEX(data2!$B$7:$B$134,SMALL(IF(OFFSET(data2!$H$7:$H$134,,$AI$1)=\"ح\",ROW($7:$134)-6),ROW($A18))),\"\")","v":""}]

{"sheet":"salim","index":5,"n_rows":0,"n_cols":0,"rows_kept":0,"cut":false,"hidden":true,"merged":[]}